Workbook

Sheet Model
Q1: License | R1: GPL 2.0
B3: Valuation Date | C3: 2020-10-20
B5: Contract | C5: Apr'21 | D5: May'21 | E5: Jun'21 | F5: Jul'21 | G5: Aug'21 | H5: Sep'21 | I5: Oct'21 | J5: Nov'21 | K5: Dec'21 | L5: Jan'22 | M5: Feb'22 | N5: Mar'22 | O5: Apr'22 | P5: May'22 | Q5: Jun'22 | R5: Jul'22 | S5: Aug'22 | T5: Sep'22 | U5: Oct'22 | V5: Nov'22 | W5: Dec'22 | X5: Jan'23 | Y5: Feb'23 | Z5: Mar'23 | AA5: Apr'23
B6: Henry Hub Price | C6: 2.921 | D6: 2.892 | E6: 2.922 | F6: 2.96 | G6: 2.974 | H6: 2.966 | I6: 3.007 | J6: 3.07 | K6: 3.203 | L6: 3.294 | M6: 3.216 | N6: 3.03 | O6: 2.568 | P6: 2.48 | Q6: 2.525 | R6: 2.562 | S6: 2.57 | T6: 2.559 | U6: 2.592 | V6: 2.681 | W6: 2.87 | X6: 2.987 | Y6: 2.939 | Z6: 2.779 | AA6: 2.388
B7: Number of days | C7: 30 | D7: 31 | E7: 30 | F7: 31 | G7: 31 | H7: 30 | I7: 31 | J7: 30 | K7: 31 | L7: 31 | M7: 28 | N7: 31 | O7: 30 | P7: 31 | Q7: 30 | R7: 31 | S7: 31 | T7: 30 | U7: 31 | V7: 30 | W7: 31 | X7: 31 | Y7: 28 | Z7: 31 | AA7: 30
B11: Max Storage Capacity [Dth] | C11: 100000
B12: Max Daily Injection [Dth] | C12: 2000
B13: Max Daily Withdrawal [Dth] | C13: 4000
K14: http://processiqcompany.com
B16: Storage Revenue | C16: =SUM(F37:Q37)+SUM(S24:S35) -> 39520
S18: Withdrawal credit | T18: Total draw | U18: Daily draw
F20: Injections
C21: Injection | E21: Days | F21: =HLOOKUP(F23,$C$5:$AA$7,3,FALSE) -> 30 | G21: =HLOOKUP(G23,$C$5:$AA$7,3,FALSE) -> 31 | H21: 30 | I21: 31 | J21: 31 | K21: 30 | L21: 31 | M21: 30 | N21: 31 | O21: 31 | P21: 28 | Q21: 31
E22: Price | F22: =HLOOKUP(F23,$C$5:$AA$6,2,FALSE) -> 2.921 | G22: =HLOOKUP(G23,$C$5:$AA$6,2,FALSE) -> 2.892 | H22: =HLOOKUP(H23,$C$5:$AA$6,2,FALSE) -> 2.922 | I22: =HLOOKUP(I23,$C$5:$AA$6,2,FALSE) -> 2.96 | J22: =HLOOKUP(J23,$C$5:$AA$6,2,FALSE) -> 2.974 | K22: =HLOOKUP(K23,$C$5:$AA$6,2,FALSE) -> 2.966 | L22: =HLOOKUP(L23,$C$5:$AA$6,2,FALSE) -> 3.007 | M22: =HLOOKUP(M23,$C$5:$AA$6,2,FALSE) -> 3.07 | N22: =HLOOKUP(N23,$C$5:$AA$6,2,FALSE) -> 3.203 | O22: =HLOOKUP(O23,$C$5:$AA$6,2,FALSE) -> 3.294 | P22: =HLOOKUP(P23,$C$5:$AA$6,2,FALSE) -> 3.216 | Q22: =HLOOKUP(Q23,$C$5:$AA$6,2,FALSE) -> 3.03
C23: Days | D23: Price | E23: Contract | F23: =C5 -> Apr'21 | G23: =D5 -> May'21 | H23: =E5 -> Jun'21 | I23: =F5 -> Jul'21 | J23: =G5 -> Aug'21 | K23: =H5 -> Sep'21 | L23: =I5 -> Oct'21 | M23: =J5 -> Nov'21 | N23: =K5 -> Dec'21 | O23: =L5 -> Jan'22 | P23: =M5 -> Feb'22 | Q23: =N5 -> Mar'22
B24: Withdrawals | C24: =TRANSPOSE(F21:Q21) -> 30 | D24: =TRANSPOSE(F22:Q22) -> 2.921 | E24: =TRANSPOSE(F23:Q23) -> Apr'21 | F24: 0 | G24: 0 | H24: 0 | I24: 0 | J24: 0 | K24: 0 | L24: 0 | M24: 0 | N24: 0 | O24: 0 | P24: 0 | Q24: 0 | S24: =SUM(F24:Q24)*D24*10000 -> 0 | T24: =SUM(F24:Q24)*10000 -> 0 | U24: =T24/C24 -> 0
C25: 31 | D25: 2.892 | E25: May'21 | F25: 0 | G25: 0 | H25: 0 | I25: 0 | J25: 0 | K25: 0 | L25: 0 | M25: 0 | N25: 0 | O25: 0 | P25: 0 | Q25: 0 | S25: =SUM(F25:Q25)*D25*10000 -> 0 | T25: =SUM(F25:Q25)*10000 -> 0 | U25: =T25/C25 -> 0
C26: 30 | D26: 2.922 | E26: Jun'21 | F26: 0 | G26: 0 | H26: 0 | I26: 0 | J26: 0 | K26: 0 | L26: 0 | M26: 0 | N26: 0 | O26: 0 | P26: 0 | Q26: 0 | S26: 0 | T26: 0 | U26: 0
C27: 31 | D27: 2.96 | E27: Jul'21 | F27: 0 | G27: 0 | H27: 0 | I27: 0 | J27: 0 | K27: 0 | L27: 0 | M27: 0 | N27: 0 | O27: 0 | P27: 0 | Q27: 0 | S27: 0 | T27: 0 | U27: 0
C28: 31 | D28: 2.974 | E28: Aug'21 | F28: 0 | G28: 0 | H28: 0 | I28: 0 | J28: 0 | K28: 0 | L28: 0 | M28: 0 | N28: 0 | O28: 0 | P28: 0 | Q28: 6 | S28: 178440 | T28: 60000 | U28: 1935.483871
C29: 30 | D29: 2.966 | E29: Sep'21 | F29: 0 | G29: 0 | H29: 0 | I29: 0 | J29: 0 | K29: 0 | L29: 0 | M29: 0 | N29: 0 | O29: 0 | P29: 0 | Q29: 0 | S29: 0 | T29: 0 | U29: 0
C30: 31 | D30: 3.007 | E30: Oct'21 | F30: 0 | G30: 0 | H30: 0 | I30: 0 | J30: 0 | K30: 0 | L30: 0 | M30: 0 | N30: 0 | O30: 1 | P30: 1 | Q30: 0 | S30: 60140 | T30: 20000 | U30: 645.1612903
C31: 30 | D31: 3.07 | E31: Nov'21 | F31: 0 | G31: 0 | H31: 0 | I31: 0 | J31: 0 | K31: 5 | L31: 0 | M31: 0 | N31: 0 | O31: 0 | P31: 0 | Q31: 0 | S31: 153500 | T31: 50000 | U31: 1666.666667
C32: 31 | D32: 3.203 | E32: Dec'21 | F32: 0 | G32: 0 | H32: 0 | I32: 0 | J32: 0 | K32: 0 | L32: 2 | M32: 4 | N32: 0 | O32: 0 | P32: 0 | Q32: 0 | S32: 192180 | T32: 60000 | U32: 1935.483871
C33: 31 | D33: 3.294 | E33: Jan'22 | F33: 3 | G33: 0 | H33: 0 | I33: 0 | J33: 0 | K33: 1 | L33: 0 | M33: 1 | N33: 6 | O33: 0 | P33: 1 | Q33: 0 | S33: 395280 | T33: 120000 | U33: 3870.967742
C34: 28 | D34: 3.216 | E34: Feb'22 | F34: 1 | G34: 4 | H34: 0 | I34: 0 | J34: 0 | K34: 0 | L34: 0 | M34: 0 | N34: 0 | O34: 0 | P34: 0 | Q34: 0 | S34: 160800 | T34: 50000 | U34: 1785.714286
C35: 31 | D35: 3.03 | E35: Mar'22 | F35: 0 | G35: 2 | H35: 0 | I35: 0 | J35: 0 | K35: 0 | L35: 0 | M35: 0 | N35: 0 | O35: 1 | P35: 3 | Q35: 0 | S35: 181800 | T35: 60000 | U35: 1935.483871
D37: Injection Charge | F37: =-SUM(F24:F35)*F22*10000 -> -116840 | G37: =-SUM(G24:G35)*G22*10000 -> -173520 | H37: =-SUM(H24:H35)*H22*10000 -> 0 | I37: =-SUM(I24:I35)*I22*10000 -> 0 | J37: =-SUM(J24:J35)*J22*10000 -> 0 | K37: =-SUM(K24:K35)*K22*10000 -> -177960 | L37: =-SUM(L24:L35)*L22*10000 -> -60140 | M37: =-SUM(M24:M35)*M22*10000 -> -153500 | N37: =-SUM(N24:N35)*N22*10000 -> -192180 | O37: =-SUM(O24:O35)*O22*10000 -> -65880 | P37: =-SUM(P24:P35)*P22*10000 -> -160800 | Q37: =-SUM(Q24:Q35)*Q22*10000 -> -181800
D38: Total injection | F38: =SUM(F24:F35)*10000 -> 40000 | G38: =SUM(G24:G35)*10000 -> 60000 | H38: 0 | I38: 0 | J38: 0 | K38: 60000 | L38: 20000 | M38: 50000 | N38: 60000 | O38: 20000 | P38: 50000 | Q38: 60000
D39: Daily injection | F39: =F38/F21 -> 1333.333333 | G39: =G38/G21 -> 1935.483871 | H39: 0 | I39: 0 | J39: 0 | K39: 2000 | L39: 645.1612903 | M39: 1666.666667 | N39: 1935.483871 | O39: 645.1612903 | P39: 1785.714286 | Q39: 1935.483871
D41: Contract | F41: =F23 -> Apr'21 | G41: =G23 -> May'21 | H41: Jun'21 | I41: Jul'21 | J41: Aug'21 | K41: Sep'21 | L41: Oct'21 | M41: Nov'21 | N41: Dec'21 | O41: Jan'22 | P41: Feb'22 | Q41: Mar'22
D42: Total Storage | F42: =F38-T24 -> 40000 | G42: =F42+G38-T25 -> 100000 | H42: =G42+H38-T26 -> 100000 | I42: =H42+I38-T27 -> 100000 | J42: =I42+J38-T28 -> 40000 | K42: =J42+K38-T29 -> 100000 | L42: =K42+L38-T30 -> 100000 | M42: =L42+M38-T31 -> 100000 | N42: =M42+N38-T32 -> 100000 | O42: =N42+O38-T33 -> 0 | P42: =O42+P38-T34 -> 0 | Q42: =P42+Q38-T35 -> 0
D43: Price | F43: =F22 -> 2.921 | G43: =G22 -> 2.892 | H43: 2.922 | I43: 2.96 | J43: 2.974 | K43: 2.966 | L43: 3.007 | M43: 3.07 | N43: 3.203 | O43: 3.294 | P43: 3.216 | Q43: 3.03
